bitfinex-derivatives/quotes_SOLF0:USTF0_20250903
["timestamp","ask_amount","ask_price","bid_price","bid_amount"]
[1756883555955,9.11828269,208.66,208.53,7.79]
[1756883556253,6.59,208.64,208.53,7.79]
[1756883557555,6.59,208.62,208.53,7.79]
[1756883558249,6.59,208.62,208.5,7.79]
[1756883560962,6.59,208.58,208.4,7.79]
[1756883561162,6.59,208.58,208.46,7.79]
[1756883564269,6.59,208.58,208.52,2.52828269]
[1756883564565,6.59,208.63,208.53,7.44]
[1756883572276,6.59,208.63,208.56,7.44]
[1756883573175,11.93345937,208.63,208.56,7.44]
[1756883574876,5.34345937,208.66,208.56,7.44]
[1756883575870,6.59,208.65,208.56,7.44]
[1756883576070,5.34345937,208.64,208.56,7.44]
[1756883576275,6.59,208.62,208.56,7.44]
[1756883578872,5.34345937,208.65,208.57,7.44]
[1756883579078,5.34345937,208.66,208.6,7.44]
[1756883579379,11.93345937,208.7,208.6,7.44]
[1756883580678,5.34345937,208.69,208.6,7.44]
[1756883581375,6.59,208.7,208.63,7.44]
[1756883583682,11.93345937,208.7,208.63,7.44]
[1756883583983,6.59,208.69,208.59,9.96828269]
[1756883584581,11.93345937,208.69,208.59,9.96828269]
[1756883586286,6.59,208.68,208.59,9.96828269]
[1756883586788,6.59,208.67,208.59,7.44]
[1756883589182,11.91345937,208.71,208.63,7.44]
[1756883589383,6.57,208.71,208.63,7.44]
[1756883590286,6.57,208.71,208.63,9.96828269]
[1756883591084,6.57,208.71,208.63,7.44]
[1756883591492,11.92345937,208.73,208.63,7.44]
[1756883591791,6.58,208.73,208.63,7.44]
[1756883592384,2.52828269,208.71,208.59,2.52828269]
[1756883592587,6.58,208.7,208.6,7.7]
[1756883593185,6.58,208.67,208.56,10.22828269]
[1756883593593,6.58,208.67,208.57,7.7]
[1756883595993,6.58,208.67,208.59,2.52828269]
[1756883596191,6.58,208.71,208.63,7.7]
[1756883599401,5.34345937,208.74,208.63,7.7]
[1756883599698,6.58,208.75,208.66,7.7]
[1756883601997,11.92345937,208.79,208.69,7.7]
[1756883602402,5.34345937,208.78,208.69,7.7]
[1756883602602,6.58,208.77,208.69,7.7]
[1756883603698,6.58,208.77,208.66,7.7]
[1756883606097,6.58,208.77,208.67,2.52828269]
[1756883606403,6.58,208.77,208.68,7.7]
[1756883607500,1.61689101,208.76,208.69,1.61689101]
[1756883607701,6.58,208.75,208.68,7.7]
[1756883608905,8.19689101,208.75,208.68,7.7]
[1756883610406,1.61689101,208.75,208.69,1.61689101]
[1756883610807,11.92345937,208.78,208.69,1.61689101]
[1756883611006,1.61689101,208.76,208.69,1.61689101]
[1756883611499,11.92345937,208.78,208.69,1.61689101]
[1756883611807,1.61689101,208.77,208.69,1.61689101]
[1756883612005,11.92345937,208.78,208.71,9.31689101]
[1756883612006,8.19689101,208.78,208.71,9.31689101]
[1756883613803,1.61689101,208.77,208.71,9.31689101]
[1756883615008,6.58,208.78,208.71,9.31689101]
[1756883615306,1.61689101,208.77,208.71,9.31689101]
[1756883615902,1.61689101,208.77,208.71,7.7]
[1756883616910,6.58,208.74,208.68,1.61689101]
[1756883618910,6.96035038,208.77,208.7,1.61689101]
[1756883619910,5.34345937,208.77,208.71,7.7]
[1756883620108,13.54035038,208.79,208.73,7.7]
[1756883622514,11.92345937,208.79,208.73,7.7]
[1756883622713,13.54035038,208.79,208.73,7.7]
[1756883624015,133.14035038,208.79,208.73,7.7]
[1756883624412,1.61689101,208.77,208.7,1.61689101]
[1756883626820,131.52345937,208.79,208.69,7.23]
[1756883627022,133.14035038,208.79,208.72,1.61689101]
[1756883627926,5.0,208.74,208.73,7.23]
[1756883628126,5.0,208.74,208.72,1.61689101]
[1756883629325,5.0,208.74,208.72,8.84689101]
[1756883630029,5.0,208.74,208.72,7.23]
[1756883630325,6.55,208.73,208.67,1.61689101]
[1756883630519,8.16689101,208.73,208.67,1.61689101]
[1756883630922,8.16689101,208.73,208.66,7.23]
[1756883634130,6.55,208.73,208.66,7.23]
[1756883634325,5.0,208.74,208.69,1.61689101]
[1756883634533,5.0,208.74,208.7,7.23]
[1756883634732,5.0,208.74,208.69,1.61689101]
[1756883635030,6.55,208.73,208.7,7.23]
[1756883635525,5.0,208.74,208.7,7.23]
[1756883635732,11.55,208.74,208.7,7.23]
[1756883635933,6.61689101,208.74,208.68,1.61689101]
[1756883636133,5.0,208.74,208.68,1.61689101]
[1756883640134,8.16689101,208.73,208.67,7.23]
[1756883641331,13.51035038,208.73,208.67,7.23]
[1756883643932,11.89345937,208.73,208.67,7.23]
[1756883645136,5.34345937,208.73,208.7,1.61689101]
[1756883645332,5.0,208.74,208.71,7.23]
[1756883645538,5.0,208.74,208.7,1.61689101]
[1756883645738,5.0,208.74,208.71,7.23]
[1756883646138,5.0,208.74,208.7,1.61689101]
[1756883646333,5.0,208.74,208.71,7.23]
[1756883647643,5.0,208.74,208.7,1.61689101]
[1756883648144,5.0,208.74,208.71,7.23]
[1756883649746,6.57,208.73,208.63,7.23]
[1756883649946,6.57,208.73,208.69,7.23]
[1756883651243,5.0,208.74,208.69,7.23]
[1756883651443,6.57,208.73,208.69,7.23]
[1756883652249,5.0,208.74,208.7,1.61689101]
[1756883652449,5.0,208.74,208.72,1.61689101]
[1756883652650,5.0,208.74,208.73,7.65]
[1756883662350,0.03479964,208.76,208.73,8.13]
[1756883662648,6.57,208.83,208.75,9.26689101]
[1756883662952,5.34345937,208.85,208.8,1.61689101]
[1756883663149,7.42,208.84,208.8,1.61689101]
[1756883663454,7.42,208.84,208.78,1.61689101]
[1756883663950,12.76345937,208.85,208.79,0.03374143]
[1756883664458,7.42,208.85,208.79,0.03374143]
[1756883666850,1.61689101,208.82,208.79,0.03374143]
[1756883667454,7.86839514,208.85,208.79,0.03374143]
[1756883667654,7.42,208.84,208.79,0.03374143]
[1756883668255,7.86839514,208.85,208.79,0.03374143]
[1756883668557,7.42,208.84,208.79,0.03374143]
[1756883668960,5.34345937,208.85,208.79,0.03374143]
[1756883670063,7.42,208.84,208.79,0.03374143]
[1756883670262,5.34345937,208.85,208.79,0.03374143]
[1756883670460,7.42,208.84,208.79,0.03374143]
[1756883670660,5.34345937,208.85,208.79,0.03374143]
[1756883671268,7.42,208.84,208.79,0.03374143]
[1756883672568,5.34345937,208.85,208.79,0.03374143]
[1756883673171,7.42,208.84,208.79,0.03374143]
[1756883673569,15.28839514,208.85,208.79,0.03374143]
[1756883675275,7.42,208.85,208.79,0.03374143]
[1756883675663,7.42,208.85,208.79,7.68374143]
[1756883678475,7.42,208.85,208.79,0.03374143]
[1756883680472,7.42,208.85,208.79,7.68374143]
[1756883682876,7.42,208.85,208.79,0.03374143]
[1756883686479,12.76345937,208.85,208.79,0.03374143]
[1756883687284,7.42,208.85,208.79,0.03374143]
[1756883694689,12.76345937,208.85,208.79,0.03374143]
[1756883698290,12.76345937,208.85,208.79,7.35374143]
[1756883700295,5.34345937,208.84,208.79,0.03374143]
[1756883700593,7.91,208.82,208.79,0.03374143]
[1756883700995,5.34345937,208.84,208.79,0.03374143]
[1756883701595,7.91,208.83,208.79,0.03374143]
[1756883702093,5.34345937,208.84,208.79,0.03374143]
[1756883702293,13.25345937,208.83,208.79,0.03374143]
[1756883702486,5.34345937,208.83,208.79,0.03374143]
[1756883702690,7.91,208.82,208.79,0.03374143]
[1756883703490,13.25345937,208.84,208.8,7.32]
[1756883703695,13.25345937,208.84,208.79,0.03374143]
[1756883703897,13.25345937,208.84,208.8,7.32]
[1756883704192,7.91,208.83,208.8,7.32]
[1756883705196,7.91,208.83,208.79,0.03374143]
[1756883705387,7.91,208.83,208.79,7.35374143]
[1756883706595,7.91,208.83,208.79,0.03374143]
[1756883706899,7.91,208.83,208.79,7.35374143]
[1756883707697,5.34345937,208.84,208.79,7.35374143]
[1756883708398,7.91,208.83,208.79,7.35374143]
[1756883708898,5.34345937,208.84,208.79,0.03374143]
[1756883709097,7.91,208.82,208.79,0.03374143]
[1756883709299,7.91,208.81,208.79,0.03374143]
[1756883709698,7.91,208.8,208.79,0.03374143]
[1756883710003,10.43493577,208.8,208.79,0.03374143]
[1756883710203,18.45012483,208.8,208.7,7.32]
[1756883710404,7.91,208.77,208.7,7.32]
[1756883711504,7.89852109,208.77,208.66,7.4]
[1756883711706,7.66,208.76,208.66,7.4]
[1756883712201,7.89852109,208.77,208.62,27.74]
[1756883712202,2.52493577,208.74,208.62,4.0272384]
[1756883712406,7.66,208.7,208.62,7.4]
[1756883713100,0.03133591,208.68,208.64,0.03612988]
[1756883713302,7.66,208.67,208.64,0.03612988]
[1756883714106,0.03133591,208.68,208.64,0.03612988]
[1756883714400,7.66,208.67,208.64,0.03612988]
[1756883714596,0.03133591,208.68,208.64,0.03612988]
[1756883714799,7.66,208.67,208.64,0.03612988]
[1756883715908,0.03133591,208.68,208.65,7.4]
[1756883716296,0.03133591,208.68,208.64,0.03612988]
[1756883716496,0.03133591,208.68,208.65,7.4]
[1756883717206,0.03133591,208.68,208.64,0.03612988]
[1756883717608,0.03133591,208.68,208.65,7.4]
[1756883717806,0.03133591,208.68,208.64,0.03612988]
[1756883718005,0.03133591,208.68,208.65,7.4]
[1756883718403,7.69133591,208.68,208.65,7.4]
[1756883718603,7.69133591,208.68,208.64,0.03612988]
[1756883718806,7.66,208.67,208.64,0.03612988]
[1756883720309,0.03133591,208.68,208.64,0.03612988]
[1756883720709,7.66,208.67,208.64,0.03612988]
[1756883720908,0.03133591,208.68,208.64,0.03612988]
[1756883721812,7.66,208.67,208.64,0.03612988]
[1756883722409,0.03133591,208.68,208.64,0.03612988]
[1756883722605,2.52493577,208.67,208.64,0.03612988]
[1756883722913,7.69133591,208.68,208.64,0.03612988]
[1756883723102,0.03133591,208.68,208.64,0.03612988]
[1756883723309,7.66,208.67,208.64,0.03612988]
[1756883723906,0.03133591,208.68,208.64,0.03612988]
[1756883724103,2.52493577,208.67,208.64,0.03612988]
[1756883724307,7.66,208.66,208.64,0.03612988]
[1756883724707,2.52493577,208.67,208.64,0.03612988]
[1756883725111,7.66,208.66,208.64,0.03612988]
[1756883725412,10.18493577,208.67,208.64,0.03612988]
[1756883725612,7.66,208.66,208.64,0.03612988]
[1756883725805,2.52493577,208.67,208.64,0.03612988]
[1756883726306,8.14,208.66,208.52,7.4]
[1756883726514,7.66,208.61,208.52,7.4]
[1756883727713,0.03625888,208.59,208.52,7.4]
[1756883729510,0.03625888,208.59,208.53,1.61925778]
[1756883730611,0.03625888,208.59,208.52,7.4]
[1756883730817,0.03625888,208.59,208.52,9.01925778]
[1756883731011,0.03625888,208.59,208.54,1.61925778]
[1756883731517,9.27925778,208.61,208.55,7.4]
[1756883731712,0.03481536,208.59,208.55,7.4]
[1756883731911,0.03481536,208.59,208.54,1.61925778]
[1756883732913,0.03481536,208.59,208.55,7.4]
[1756883733118,0.03481536,208.59,208.54,1.61925778]
[1756883733621,0.03481536,208.59,208.55,7.4]
[1756883733819,7.69481536,208.59,208.55,7.4]
[1756883734217,7.69481536,208.59,208.53,7.4]
[1756883734218,9.31407314,208.59,208.53,7.4]
[1756883735916,1.65407314,208.59,208.53,9.01925778]
[1756883736114,0.03481536,208.59,208.55,1.61925778]
[1756883736319,0.03481536,208.59,208.56,7.4]
[1756883736520,7.66,208.59,208.55,7.4]
[1756883736713,7.66,208.59,208.54,7.4]
[1756883736917,7.66,208.59,208.53,1.61925778]
[1756883737113,7.66,208.59,208.53,9.01925778]
[1756883737321,1.64945418,208.6,208.53,9.01925778]
[1756883738318,7.66,208.59,208.49,9.01925778]
[1756883738523,1.61925778,208.56,208.49,9.01925778]
[1756883738917,1.65327017,208.56,208.49,9.01925778]
[1756883739116,9.31327017,208.56,208.49,9.01925778]
[1756883739617,1.65327017,208.56,208.49,9.01925778]
[1756883742630,0.03401239,208.56,208.49,9.01925778]
[1756883743220,0.03401239,208.56,208.49,7.4]
[1756883743221,1.61925778,208.55,208.49,7.4]
[1756883743427,0.03401239,208.56,208.35,118.56189454]
[1756883743428,9.17925778,208.5,208.42,7.18]
[1756883743727,1.61925778,208.46,208.4,7.18]
[1756883743928,1.61925778,208.47,208.4,8.79925778]
[1756883744129,7.56,208.5,208.41,7.18]
[1756883744130,0.03240251,208.45,208.41,7.18]
[1756883744525,0.03240251,208.45,208.42,1.61925778]
[1756883744827,0.03240251,208.45,208.44,8.79925778]
[1756883746423,1.61925778,208.57,208.44,9.27925778]
[1756883746628,1.61925778,208.57,208.51,7.18]
[1756883747132,9.17925778,208.57,208.51,7.18]
[1756883750530,7.56,208.63,208.54,1.61925778]
[1756883750724,302.98,208.67,208.58,7.18]
[1756883750922,302.98,208.67,208.6,1.61925778]
[1756883750923,7.56,208.67,208.6,1.61925778]
[1756883751130,7.56,208.67,208.62,8.79925778]
[1756883751631,7.56,208.67,208.51,20.98]
[1756883751632,1.61925778,208.66,208.52,7.18]
[1756883751825,1.61925778,208.66,208.58,1.61925778]
[1756883753130,7.56,208.67,208.62,1.61925778]
[1756883753329,1.61925778,208.69,208.63,7.18]
[1756883753530,1.61925778,208.69,208.62,1.61925778]
[1756883754433,1.61925778,208.65,208.57,1.61925778]
[1756883754631,67.04,208.7,208.55,1.61925778]
[1756883754632,1.61925778,208.63,208.55,1.61925778]
[1756883754932,1.61925778,208.63,208.54,8.79925778]
[1756883755127,9.17925778,208.64,208.57,7.18]
[1756883755326,9.17925778,208.64,208.58,1.61925778]
[1756883757136,9.17925778,208.64,208.57,7.18]
[1756883758039,9.17925778,208.64,208.58,1.61925778]
[1756883758833,9.17925778,208.64,208.57,7.18]
[1756883759039,7.56,208.61,208.57,7.18]
[1756883759240,1.61925778,208.62,208.49,10.56]
[1756883759241,9.17925778,208.62,208.55,1.61925778]
[1756883759644,1.61925778,208.6,208.53,8.79925778]
[1756883760039,7.56,208.57,208.53,7.18]
[1756883760345,7.56,208.57,208.51,1.61925778]
[1756883761233,1.61925778,208.59,208.5,7.18]
[1756883761440,7.56,208.58,208.5,8.79925778]
[1756883761740,1.61925778,208.56,208.5,7.18]
[1756883763132,1.61925778,208.57,208.5,7.18]
[1756883763434,1.61925778,208.59,208.5,8.79925778]
[1756883763837,9.17925778,208.59,208.5,8.79925778]
[1756883764035,1.61925778,208.61,208.53,7.18]
[1756883764236,1.61925778,208.61,208.54,1.61925778]
[1756883764544,1.61925778,208.61,208.53,7.18]
[1756883764941,1.61925778,208.61,208.54,1.61925778]
[1756883765444,7.56,208.63,208.56,8.79925778]
[1756883766945,7.56,208.67,208.6,1.61925778]
[1756883767150,5.37358532,208.7,208.62,1.61925778]
[1756883767342,1.61925778,208.69,208.62,1.61925778]
[1756883769042,12.93358532,208.71,208.62,8.79925778]
[1756883769248,295.46,208.72,208.65,1.61925778]
[1756883769249,302.4528431,208.72,208.65,1.61925778]
[1756883769447,297.07925778,208.72,208.65,8.79925778]
[1756883770339,295.46,208.72,208.65,8.79925778]
[1756883770542,5.37358532,208.73,208.65,8.79925778]
[1756883770738,9.17925778,208.74,208.67,1.61925778]
[1756883771740,7.31,208.75,208.69,1.61925778]
[1756883772751,7.31,208.75,208.67,1.61925778]
[1756883773549,1.61925778,208.74,208.67,1.61925778]
[1756883773851,7.31,208.71,208.63,1.61925778]
[1756883775152,1.61925778,208.68,208.6,1.61925778]
[1756883775848,1.61925778,208.66,208.58,7.75]
[1756883776053,1.61925778,208.66,208.53,295.42]
[1756883776054,1.61925778,208.64,208.56,1.61925778]
[1756883777651,1.61925778,208.64,208.57,7.75]
[1756883778846,1.61925778,208.62,208.54,1.61925778]
[1756883779050,1.61925778,208.6,208.54,1.61925778]
[1756883779458,1.61925778,208.6,208.53,1.61925778]
[1756883782851,1.61925778,208.6,208.52,7.75]
[1756883783055,1.61925778,208.58,208.52,7.75]
[1756883784360,8.92925778,208.58,208.52,7.75]
[1756883784562,1.61925778,208.56,208.49,1.61925778]
[1756883787761,1.61925778,208.56,208.48,9.36925778]
[1756883787961,1.61925778,208.56,208.48,7.75]
[1756883788165,1.61925778,208.54,208.48,7.75]
[1756883789463,7.31,208.55,208.48,7.75]
[1756883792867,7.31,208.6,208.5,7.75]
[1756883793869,5.37358532,208.63,208.5,7.75]
[1756883794168,15.21512665,208.64,208.52,2.53154133]
[1756883794362,9.84154133,208.64,208.53,7.75]
[1756883798873,7.31,208.6,208.48,7.75]
[1756883802674,7.18,208.57,208.48,7.75]
[1756883803175,2.53154133,208.55,208.42,7.21]
[1756883803375,7.18,208.51,208.42,7.21]
[1756883803675,2.53154133,208.49,208.42,7.21]
[1756883805474,7.18,208.51,208.42,7.21]
[1756883807074,7.18,208.53,208.37,7.21]
[1756883808475,7.18,208.48,208.37,7.21]
[1756883808673,38.54,208.48,208.37,7.21]
[1756883810381,7.18,208.47,208.3,7.21]
[1756883814182,15.02,208.47,208.3,7.21]
[1756883816191,15.02,208.47,208.3,8.04533365]
[1756883816387,7.18,208.47,208.3,8.04533365]
[1756883819395,7.18,208.47,208.3,14.88876532]
[1756883819594,7.18,208.47,208.31,7.21]
[1756883821895,7.18,208.49,208.32,7.21]
[1756883824903,18.6,208.53,208.34,7.21]
[1756883825090,18.6,208.53,208.31,24.28343167]
[1756883825091,18.6,208.53,208.37,7.21]
[1756883825495,21.13242828,208.53,208.39,2.53242828]
[1756883825692,21.13242828,208.53,208.4,7.21]
[1756883826802,9.71242828,208.53,208.4,7.21]
[1756883827804,9.71242828,208.53,208.39,2.53242828]
[1756883827805,7.18,208.53,208.43,7.21]
[1756883827997,7.18,208.53,208.43,9.74242828]
[1756883829308,7.18,208.53,208.44,7.21]
[1756883830003,40.93242828,208.57,208.44,7.21]
[1756883830198,48.11242828,208.57,208.44,7.21]
[1756883832897,2.53242828,208.51,208.4,7.61]
[1756883833106,7.65,208.5,208.4,7.61]
[1756883838707,7.65,208.5,208.42,2.53242828]
[1756883839010,7.65,208.53,208.46,7.61]
[1756883840200,7.65,208.57,208.46,7.61]
[1756883840408,7.65,208.57,208.49,7.61]
[1756883842706,298.05242828,208.58,208.45,10.14242828]
[1756883843110,7.65,208.57,208.45,10.14242828]
[1756883843612,7.65,208.57,208.45,7.61]
[1756883845311,7.65,208.57,208.4,7.61]
[1756883845520,7.65,208.54,208.4,7.61]
[1756883845810,7.65,208.52,208.4,7.61]
[1756883846614,13.02358532,208.52,208.4,7.61]
[1756883847010,5.37358532,208.51,208.4,7.61]
[1756883847213,7.65,208.5,208.34,7.61]
[1756883847413,13.02358532,208.5,208.34,7.61]
[1756883847608,7.65,208.48,208.34,7.61]
[1756883847812,13.02358532,208.48,208.34,7.61]
[1756883848806,5.37358532,208.46,208.3,295.68]
[1756883849010,7.65,208.44,208.29,7.61]
[1756883849209,13.02358532,208.44,208.29,7.61]
[1756883849612,19.8604962,208.44,208.29,7.61]
[1756883849818,7.65,208.42,208.29,7.61]
[1756883851411,4.30363751,208.41,208.29,7.61]
[1756883851718,7.65,208.4,208.29,7.61]
[1756883854916,7.65,208.43,208.29,7.61]
[1756883857218,7.65,208.48,208.31,7.61]
[1756883857924,7.65,208.48,208.35,7.61]
[1756883858726,13.02358532,208.48,208.35,7.61]
[1756883859618,4.30363751,208.47,208.35,7.61]
[1756883859815,4.30363751,208.43,208.31,7.61]
[1756883860022,7.65,208.42,208.31,7.61]
[1756883860224,25.81,208.42,208.31,7.61]
[1756883863529,4.30363751,208.41,208.31,7.61]
[1756883863729,7.74,208.4,208.31,7.61]
[1756883867528,1.62274114,208.37,208.31,7.61]
[1756883868931,1.62274114,208.35,208.31,7.61]
[1756883869138,9.36274114,208.35,208.31,7.61]
[1756883869834,7.74,208.35,208.31,7.61]
[1756883870130,5.37358532,208.45,208.25,72.23732455]
[1756883870131,9.36274114,208.39,208.32,1.62274114]
[1756883870730,7.74,208.39,208.32,1.62274114]
[1756883870936,1.62274114,208.41,208.33,7.56]
[1756883871640,1.62274114,208.37,208.3,1.62274114]
[1756883871837,1.62274114,208.37,208.3,9.18274114]
[1756883872734,9.36274114,208.38,208.3,9.18274114]
[1756883874837,1.62274114,208.38,208.3,9.18274114]
[1756883875037,12.2,208.44,208.33,7.56]
[1756883875038,1.62274114,208.4,208.33,7.56]
[1756883875435,1.62274114,208.38,208.33,7.56]
[1756883875639,1.62274114,208.36,208.29,9.18274114]
[1756883878440,1.62274114,208.38,208.31,1.62274114]
[1756883878745,1.62274114,208.39,208.32,7.56]
[1756883879345,1.62274114,208.41,208.33,1.62274114]
[1756883879540,7.74,208.42,208.34,7.56]
[1756883879541,1.62274114,208.39,208.34,7.56]
[1756883879745,1.62274114,208.39,208.33,7.56]
[1756883880248,7.74,208.47,208.38,1.62274114]
[1756883880436,1.62274114,208.45,208.38,1.62274114]
[1756883881245,1.62274114,208.41,208.34,1.62274114]
[1756883881441,1.62274114,208.39,208.33,7.56]
[1756883884544,1.62274114,208.35,208.28,1.62274114]
[1756883884845,1.62274114,208.35,208.29,7.56]
[1756883885044,1.62274114,208.36,208.29,7.56]
[1756883885549,1.62274114,208.38,208.31,7.56]
[1756883886442,1.62274114,208.36,208.31,7.56]
[1756883886749,1.62274114,208.34,208.28,9.18274114]
[1756883886949,17.98,208.43,208.25,1.62274114]
[1756883886950,1.62274114,208.32,208.25,1.62274114]
[1756883887146,1.62274114,208.32,208.24,9.18274114]
[1756883887346,1.62274114,208.3,208.24,9.18274114]
[1756883887550,1.62274114,208.3,208.24,7.56]
[1756883887746,1.62274114,208.31,208.24,7.56]
[1756883888051,1.62274114,208.32,208.24,9.18274114]
[1756883888250,1.62274114,208.32,208.26,1.62274114]
[1756883888450,1.62274114,208.34,208.27,7.56]
[1756883889047,7.74,208.36,208.27,7.56]
[1756883889250,1.62274114,208.33,208.27,7.56]
[1756883889551,9.36274114,208.31,208.27,7.56]
[1756883890054,9.36274114,208.31,208.24,1.62274114]
[1756883891546,1.62274114,208.29,208.23,7.56]
[1756883892345,1.62274114,208.29,208.23,9.18274114]
[1756883894952,1.62274114,208.29,208.23,7.56]
[1756883895354,7.91,208.27,208.23,7.56]
[1756883895556,1.62274114,208.27,208.21,7.4]
[1756883898155,7.91,208.29,208.21,7.4]
[1756883898354,1.62274114,208.28,208.21,7.4]
[1756883898653,1.62274114,208.28,208.21,9.02274114]
[1756883899262,1.62274114,208.28,208.21,7.4]
[1756883899856,1.62274114,208.28,208.21,9.02274114]
[1756883901358,1.62274114,208.26,208.21,7.4]
[1756883901556,9.53274114,208.26,208.21,7.4]
[1756883901751,9.53274114,208.26,208.17,9.02274114]
[1756883901752,1.62274114,208.24,208.17,9.02274114]
[1756883902251,9.53274114,208.26,208.17,9.02274114]
[1756883902451,5.37358532,208.32,208.2,7.4]
[1756883902452,1.62274114,208.27,208.2,7.4]
[1756883902857,9.53274114,208.27,208.2,7.4]
[1756883903252,1.62274114,208.27,208.2,7.4]
[1756883904055,1.62274114,208.25,208.2,7.4]
[1756883904257,1.62274114,208.25,208.18,7.4]
[1756883905555,1.62274114,208.26,208.18,7.4]
[1756883906462,1.62274114,208.22,208.18,7.4]
[1756883906766,1.62274114,208.24,208.17,7.4]
[1756883908757,7.91,208.26,208.17,7.4]
[1756883908962,1.62274114,208.25,208.19,7.4]
[1756883910072,1.62274114,208.28,208.21,7.4]
[1756883910670,7.91,208.31,208.21,7.4]
[1756883910871,1.62274114,208.3,208.23,7.4]
[1756883911166,7.91,208.34,208.23,7.4]
[1756883911368,1.62274114,208.32,208.25,7.4]
[1756883911870,7.91,208.31,208.12,4.0161638]
[1756883912067,1.62274114,208.28,208.21,1.62274114]
[1756883912267,1.62274114,208.29,208.22,9.02274114]
[1756883912773,1.62274114,208.29,208.22,7.4]
[1756883913067,7.91,208.31,208.22,7.4]
[1756883913269,7.91,208.35,208.25,1.62274114]
[1756883913479,7.91,208.35,208.26,7.4]
[1756883914370,10.44637039,208.35,208.26,7.4]
[1756883914974,7.91,208.35,208.26,7.4]
[1756883915174,7.91,208.33,208.26,7.4]
[1756883915880,2.53637039,208.31,208.21,7.4]
[1756883916077,7.91,208.3,208.21,7.4]
[1756883917782,7.91,208.27,208.11,0.83601595]
[1756883917987,10.44637039,208.25,208.12,7.4]
[1756883922687,7.91,208.25,208.12,7.4]
[1756883922888,10.44637039,208.25,208.12,7.4]
[1756883923482,7.91,208.25,208.12,7.4]
[1756883923680,10.44637039,208.25,208.12,7.4]
[1756883924987,2.53637039,208.22,208.12,7.4]
[1756883927989,10.32637039,208.22,208.12,7.4]
[1756883928888,7.79,208.22,208.12,7.4]
[1756883932383,7.79,208.22,208.12,12.4]
[1756883932590,7.79,208.22,208.13,7.36]
[1756883937098,7.79,208.22,208.14,7.36]
[1756883937393,10.32637039,208.26,208.14,7.36]
[1756883938693,7.79,208.22,208.14,7.36]
[1756883942894,7.79,208.25,208.15,7.36]
[1756883945893,7.79,208.25,208.17,7.36]
[1756883948107,5.37358532,208.28,208.17,7.36]
[1756883948305,7.79,208.29,208.19,7.36]
[1756883949004,2.53637039,208.28,208.19,7.36]
[1756883949201,7.79,208.27,208.19,7.36]
[1756883950606,7.79,208.27,208.16,7.36]
[1756883951104,13.16358532,208.27,208.19,5.0]
[1756883952011,7.79,208.27,208.19,12.54]
[1756883953905,7.79,208.27,208.2,7.54]
[1756883960014,7.79,208.27,208.2,12.54]
[1756883960216,12.80358532,208.27,208.2,5.0]
[1756883961611,7.43,208.27,208.2,5.0]
[1756883962913,12.80358532,208.27,208.2,5.0]
[1756883963107,7.43,208.25,208.2,5.0]
[1756883963413,5.37358532,208.26,208.2,5.0]
[1756883963814,7.43,208.25,208.2,5.0]
[1756883964110,5.37358532,208.26,208.2,5.0]
[1756883964416,12.80358532,208.25,208.2,5.0]
[1756883964609,5.37358532,208.25,208.2,5.0]
[1756883964810,7.43,208.24,208.2,5.0]
[1756883965012,5.37358532,208.25,208.2,5.0]
[1756883965207,7.43,208.24,208.2,5.0]
[1756883965412,5.37358532,208.25,208.2,5.0]
[1756883965618,7.43,208.24,208.2,5.0]
[1756883965917,5.37358532,208.24,208.2,5.0]